bitfinex-derivatives/quotes_SOLF0:USTF0_20240904
["timestamp","ask_amount","ask_price","bid_price","bid_amount"]
[1725426305496,3.9267,127.35,127.34,0.0546069]
[1725426310300,0.05320801,127.36,127.34,0.0546069]
[1725426310599,3.97990801,127.36,127.34,0.0546069]
[1725426311203,0.05320801,127.36,127.34,0.0546069]
[1725426311793,3.97970801,127.36,127.34,0.0546069]
[1725426312001,0.05320801,127.36,127.34,0.0546069]
[1725426313305,3.9267,127.35,127.34,0.0546069]
[1725426315401,3.97980801,127.36,127.34,0.0546069]
[1725426315803,0.05320801,127.36,127.35,9.63]
[1725426316504,3.89320435,127.4,127.35,9.63]
[1725426316505,7.81860435,127.4,127.36,3.9264]
[1725426316705,3.9254,127.4,127.36,11.0212]
[1725426317307,0.05382818,127.39,127.37,0.0576917]
[1725426317810,0.05382818,127.39,127.38,9.63]
[1725426318204,0.05382818,127.39,127.37,0.0576917]
[1725426318406,9.63,127.38,127.37,0.0576917]
[1725426318901,13.5558,127.38,127.37,0.0576917]
[1725426319710,3.9258,127.38,127.37,0.0576917]
[1725426319909,13.5558,127.38,127.37,0.0576917]
[1725426334717,3.9258,127.38,127.37,0.0576917]
[1725426334920,13.5558,127.38,127.37,0.0576917]
[1725426336416,3.97952818,127.39,127.37,0.0576917]
[1725426339119,3.9258,127.38,127.37,0.0576917]
[1725426339919,13.5558,127.38,127.37,0.0576917]
[1725426343329,9.63,127.38,127.37,0.0576917]
[1725426343530,9.63,127.38,127.3,2.8242]
[1725426343719,9.63,127.34,127.3,2.8242]
[1725426344520,1.3886,127.39,127.3,2.8242]
[1725426344722,9.63,127.35,127.33,0.05199057]
[1725426345029,13.557,127.35,127.33,0.05199057]
[1725426345231,9.63,127.35,127.33,0.05199057]
[1725426346017,3.927,127.34,127.33,0.05199057]
[1725426346222,0.05382361,127.36,127.33,0.05199057]
[1725426346624,3.9269,127.35,127.33,0.05199057]
[1725426352336,3.927,127.34,127.33,0.05199057]
[1725426356942,3.9269,127.35,127.33,0.05199057]
[1725426360347,3.927,127.34,127.33,0.05199057]
[1725426361433,0.05382361,127.36,127.33,0.05199057]
[1725426361639,3.98032361,127.36,127.33,0.05199057]
[1725426362438,3.98032361,127.36,127.33,9.68199057]
[1725426362439,0.05382361,127.36,127.33,9.68199057]
[1725426362843,0.05382361,127.36,127.33,13.60919057]
[1725426364840,0.05382361,127.36,127.34,1.3635]
[1725426366153,3.98032361,127.36,127.34,1.3635]
[1725426367351,9.63,127.35,127.33,0.05199057]
[1725426367551,9.63,127.34,127.33,0.05199057]
[1725426368750,13.557,127.34,127.33,0.05199057]
[1725426370453,9.63,127.34,127.27,106.93353291]
[1725426370749,3.9299,127.25,127.22,4.2497]
[1725426370951,7.855,127.34,127.22,4.2497]
[1725426370952,9.63,127.26,127.22,4.2497]
[1725426371152,13.61783,127.26,127.22,4.2497]
[1725426371346,0.05080974,127.25,127.23,0.05506246]
[1725426371951,3.98090974,127.25,127.23,0.05506246]
[1725426372248,0.05080974,127.25,127.23,0.05506246]
[1725426374549,3.98090974,127.25,127.23,0.05506246]
[1725426375256,0.05080974,127.25,127.23,0.05506246]
[1725426375647,0.05080974,127.25,127.23,1.48206246]
[1725426378561,3.85621452,127.28,127.23,1.48206246]
[1725426378749,24.15,127.3,127.23,1.48206246]
[1725426379064,3.9291,127.28,127.24,3.9301]
[1725426379654,0.0533927,127.27,127.25,0.04985367]
[1725426381652,0.0533927,127.27,127.25,1.46395367]
[1725426382049,0.0533927,127.27,127.26,3.9295]
[1725426385859,7.8523,127.37,127.25,26.95645367]
[1725426386056,25.5139,127.35,127.27,24.15]
[1725426386362,25.5139,127.35,127.28,3.9287]
[1725426386860,0.06039225,127.33,127.3,0.05104957]
[1725426387048,4.00126445,127.32,127.3,0.05104957]
[1725426387455,3.98789225,127.33,127.3,0.05104957]
[1725426388163,3.9277,127.32,127.3,0.05104957]
[1725426388467,24.15,127.31,127.3,0.05104957]
[1725426388757,28.16045757,127.31,127.3,0.05104957]
[1725426389264,32.08845757,127.31,127.3,0.05104957]
[1725426393559,3.9292,127.28,127.25,1.4141]
[1725426394655,3.98161089,127.28,127.25,1.46832033]
[1725426395568,3.98161089,127.28,127.25,0.05422033]
[1725426401568,0.05241089,127.28,127.25,3.98402033]
[1725426401876,0.05241089,127.28,127.25,0.05422033]
[1725426402074,0.05241089,127.28,127.25,9.70422033]
[1725426402281,0.05241089,127.28,127.25,13.63392033]
[1725426403975,3.98131089,127.28,127.25,13.63392033]
[1725426405976,3.98131089,127.28,127.25,3.98392033]
[1725426409381,3.9292,127.27,127.25,3.98392033]
[1725426414781,3.9295,127.26,127.25,0.05422033]
[1725426415275,13.5795,127.26,127.25,0.05422033]
[1725426416275,3.9295,127.26,127.25,0.05422033]
[1725426416484,13.5795,127.26,127.25,0.05422033]
[1725426419881,3.9294,127.27,127.25,0.05422033]
[1725426420083,9.70241089,127.28,127.25,0.05422033]
[1725426420790,0.05241089,127.28,127.25,0.05422033]
[1725426421189,0.05241089,127.28,127.25,9.70422033]
[1725426422286,0.05241089,127.28,127.25,13.63392033]
[1725426423491,0.05241089,127.28,127.25,3.98392033]
[1725426425297,3.88831711,127.27,127.25,3.98392033]
[1725426426695,0.05241089,127.28,127.25,3.98392033]
[1725426427098,4.07553537,127.28,127.25,3.98392033]
[1725426429389,0.05241089,127.28,127.25,3.98392033]
[1725426430196,3.88530557,127.28,127.25,3.98392033]
[1725426432089,3.88530557,127.28,127.25,5.39872033]
[1725426432992,17.46420557,127.28,127.25,1.46902033]
[1725426433195,13.53530557,127.28,127.25,0.05422033]
[1725426433593,9.65,127.26,127.13,38.6]
[1725426433794,9.65,127.23,127.18,9.65]
[1725426434595,0.05354513,127.22,127.19,0.05299788]
[1725426435197,0.05354513,127.22,127.2,3.9313]
[1725426436397,0.05354513,127.22,127.19,0.05299788]
[1725426436799,3.9313,127.21,127.19,0.05299788]
[1725426437000,9.70354513,127.22,127.19,0.05299788]
[1725426437305,3.9314,127.2,127.19,0.05299788]
[1725426437505,7.78093199,127.2,127.19,0.05299788]
[1725426437695,3.9314,127.2,127.19,0.05299788]
[1725426438400,13.5814,127.2,127.19,0.05299788]
[1725426438902,3.9314,127.2,127.19,0.05299788]
[1725426441004,7.93521642,127.21,127.19,0.05299788]
[1725426443514,3.98444513,127.22,127.19,0.05299788]
[1725426446405,13.63444513,127.22,127.19,0.05299788]
[1725426446611,3.9314,127.2,127.19,0.05299788]
[1725426446811,7.87179631,127.2,127.19,0.05299788]
[1725426447007,3.9314,127.2,127.19,0.05299788]
[1725426447714,7.93864935,127.2,127.19,0.05299788]
[1725426449209,17.58864935,127.2,127.19,0.05299788]
[1725426450106,7.93864935,127.2,127.19,0.05299788]
[1725426453812,0.05354513,127.22,127.19,0.05299788]
[1725426454205,3.98434513,127.22,127.19,0.05299788]
[1725426455220,0.05354513,127.22,127.19,0.05299788]
[1725426456712,0.05354513,127.22,127.19,3.98469788]
[1725426456916,0.05354513,127.22,127.2,9.65]
[1725426457111,0.05354513,127.22,127.2,11.1165]
[1725426457516,0.05354513,127.22,127.2,15.0477]
[1725426460018,0.05354513,127.22,127.2,11.1165]
[1725426460527,0.05354513,127.22,127.21,3.931]
[1725426460728,3.99725626,127.28,127.21,9.65]
[1725426460920,68.47204169,127.33,127.21,9.65]
[1725426461125,3.88158947,127.31,127.25,9.65]
[1725426461326,29.59396995,127.35,127.26,9.65]
[1725426461629,9.65,127.32,127.26,9.65]
[1725426461820,4.02508994,127.31,127.29,0.05605365]
[1725426462719,9.65,127.31,127.29,0.05605365]
[1725426462925,3.88634768,127.3,127.29,0.05605365]
[1725426463929,9.7029855,127.32,127.29,0.05605365]
[1725426464131,3.95080572,127.31,127.29,0.05605365]
[1725426464526,13.60080572,127.31,127.29,0.05605365]
[1725426467320,17.52880572,127.31,127.29,0.05605365]
[1725426468422,13.5783,127.3,127.29,0.05605365]
[1725426471234,3.9283,127.3,127.29,0.05605365]
[1725426471725,17.52890572,127.31,127.29,0.05605365]
[1725426472836,3.95080572,127.31,127.29,0.05605365]
[1725426473032,0.0529855,127.32,127.29,0.05605365]
[1725426473428,0.0529855,127.32,127.29,3.98455365]
[1725426476238,9.65,127.31,127.12,7.8676]
[1725426476435,9.65,127.27,127.21,1.363]
[1725426476629,9.65,127.27,127.21,8.02132916]
[1725426476832,13.5791,127.28,127.22,13.5805]
[1725426477237,0.05390718,127.26,127.24,0.05528412]
[1725426478636,3.98350718,127.26,127.24,0.05528412]
[1725426481143,3.9298,127.25,127.24,0.05528412]
[1725426490450,0.05390718,127.26,127.24,9.70528412]
[1725426490756,0.05390718,127.26,127.25,9.65]
[1725426492258,0.05390718,127.26,127.25,13.5798]
[1725426493958,18.7834839,127.37,127.25,9.65]
[1725426494160,18.7834839,127.37,127.29,9.65]
[1725426494161,11.09432341,127.34,127.29,9.65]
[1725426494355,1.3719,127.36,127.29,9.65]
[1725426494556,13.577,127.35,127.3,3.9282]
[1725426494959,0.0494451,127.34,127.31,0.0518295]
[1725426495660,3.90996559,127.33,127.31,0.0518295]
[1725426496054,0.0494451,127.34,127.31,13.6297295]
[1725426496271,0.0494451,127.34,127.31,9.7018295]
[1725426496559,0.0494451,127.34,127.33,9.65]
[1725426497062,10.9284839,127.39,127.33,9.65]
[1725426497359,14.8542839,127.39,127.34,13.5769]
[1725426498063,0.05946109,127.38,127.35,0.05787104]
[1725426499060,0.05946109,127.38,127.35,3.98447104]
[1725426499269,0.05946109,127.38,127.36,9.65]
[1725426499476,26.91834282,127.46,127.37,9.65]
[1725426499760,1.44327461,127.45,127.4,9.65]
[1725426499966,3.92484072,127.44,127.39,24.11]
[1725426500162,29.13017846,127.47,127.43,3.9242]
[1725426500367,29.13017846,127.47,127.44,24.11]
[1725426500569,29.18786542,127.47,127.44,24.16817019]
[1725426500760,29.18786542,127.47,127.46,3.9233]
[1725426500955,20.30936542,127.47,127.46,7.80337068]
[1725426501168,18.08966542,127.47,127.46,7.80337068]
[1725426501869,18.08966542,127.47,127.46,3.9233]
[1725426502071,0.05768696,127.47,127.46,3.9233]
[1725426502461,0.05768696,127.47,127.46,7.85638425]
[1725426503670,101.95733086,127.52,127.46,3.93308425]
[1725426503970,101.95733086,127.52,127.47,24.11]
[1725426504468,101.95733086,127.52,127.48,3.9225]
[1725426504668,0.05334935,127.51,127.49,0.0561345]
[1725426506571,0.05334935,127.51,127.5,3.9221]
[1725426507662,101.95733086,127.52,127.49,24.1661345]
[1725426507867,99.73793086,127.52,127.51,24.11]
[1725426508164,93.25613086,127.52,127.51,28.0318]
[1725426508566,90.72863086,127.52,127.51,28.0318]
[1725426509273,90.56520225,127.52,127.51,28.0318]
[1725426510567,0.05537709,127.53,127.51,28.0318]
[1725426510568,0.05537709,127.53,127.52,3.9215]
[1725426521977,0.05537709,127.53,127.51,28.0317]
[1725426522177,0.05537709,127.53,127.51,3.9217]
[1725426522475,0.05537709,127.53,127.5,28.032]
[1725426522680,0.05537709,127.53,127.49,0.0561345]
[1725426523778,0.05537709,127.53,127.5,3.9221]
[1725426527272,1.48157709,127.53,127.5,3.9221]
[1725426531584,5.40277709,127.53,127.49,3.9784345]
[1725426531988,5.40277709,127.53,127.5,9.65]
[1725426532287,5.40277709,127.53,127.5,13.5721]
[1725426532588,1.48157709,127.53,127.51,9.65]
[1725426532887,1.48157709,127.53,127.51,13.5718]
[1725426533086,1.48157709,127.53,127.52,9.65]
[1725426534188,0.05537709,127.53,127.52,9.65]
[1725426534888,0.05537709,127.53,127.52,13.5715]
[1725426537793,0.05537709,127.53,127.51,9.65]
[1725426538002,0.05537709,127.53,127.5,9.65]
[1725426538291,0.05537709,127.53,127.5,13.5718]
[1725426540090,3.97667709,127.53,127.5,9.65]
[1725426540294,3.97667709,127.53,127.49,13.6282345]
[1725426540893,3.97667709,127.53,127.5,13.5721]
[1725426541592,5.44467709,127.53,127.5,13.5721]
[1725426546797,3.9596116,127.52,127.49,0.0561345]
[1725426546994,13.54921341,127.51,127.45,9.65]
[1725426547191,13.54921341,127.51,127.44,9.65]
[1725426547192,3.9232,127.47,127.44,9.65]
[1725426547993,5.2605,127.48,127.44,13.62817428]
[1725426548194,0.05082898,127.47,127.44,13.62817428]
[1725426551997,3.97392898,127.47,127.44,13.62817428]
[1725426553104,3.9234,127.46,127.44,0.05437428]
[1725426553697,3.9236,127.45,127.44,0.05437428]
[1725426553900,3.9236,127.45,127.35,1.34443955]
[1725426553901,9.65,127.45,127.35,1.34443955]
[1725426554204,9.65,127.45,127.39,9.65]
[1725426554394,3.9247,127.42,127.39,9.65]
[1725426554703,3.9980459,127.43,127.39,9.65]
[1725426554907,9.65,127.45,127.4,0.05238386]
[1725426554908,3.98294607,127.42,127.4,0.05238386]
[1725426555099,0.05814607,127.42,127.4,9.70238386]
[1725426555607,0.05814607,127.42,127.41,9.65]
[1725426556009,0.05814607,127.42,127.4,24.16238386]
[1725426557407,0.05814607,127.42,127.41,3.9249]
[1725426570902,7.843,127.53,127.4,28.03687338]
[1725426571103,4.1863,127.5,127.43,24.11]
[1725426571713,3.9228,127.48,127.44,3.9238]
[1725426571913,0.05526431,127.47,127.45,0.05064965]
[1725426573707,0.05526431,127.47,127.45,3.97424965]
[1725426576120,0.05526431,127.47,127.45,0.05064965]
[1725426576415,24.11,127.48,127.39,24.11]
[1725426576620,24.11,127.48,127.41,3.9246]
[1725426576813,3.9235,127.46,127.41,3.9246]
[1725426577209,3.9235,127.46,127.42,3.97533294]
[1725426577411,0.05538497,127.45,127.42,3.97533294]
[1725426579312,3.97918497,127.45,127.42,0.05073294]
[1725426581214,3.97918497,127.45,127.42,3.97523294]
[1725426582524,3.97918497,127.45,127.42,0.05073294]
[1725426582525,0.05538497,127.45,127.42,0.05073294]
[1725426582825,14.89887893,127.44,127.42,0.05073294]
[1725426583015,16.35667893,127.44,127.42,0.05073294]
[1725426584021,20.28087893,127.44,127.42,0.05073294]
[1725426586326,16.35667893,127.44,127.42,0.05073294]
[1725426586531,16.35667893,127.44,127.38,9.64]
[1725426586532,3.9243,127.43,127.39,3.9254]
[1725426586731,3.9243,127.43,127.38,9.64]
[1725426586931,3.9243,127.43,127.4,9.64]
[1725426587431,3.98402803,127.43,127.4,13.62359807]
[1725426587733,0.05972803,127.43,127.4,13.62359807]
[1725426588037,0.05972803,127.43,127.41,3.9247]
[1725426589327,0.05972803,127.43,127.42,13.5646]
[1725426592045,3.9231,127.47,127.44,3.9238]
[1725426592246,12.4357,127.5,127.45,9.64]
[1725426592448,2.7957,127.5,127.48,3.9225]
[1725426592648,2.7957,127.5,127.46,9.64]
[1725426593040,0.05882827,127.49,127.47,3.9765603]
[1725426593641,0.05882827,127.49,127.47,13.6165603]
[1725426593943,0.05882827,127.49,127.48,13.5627]
[1725426598947,6.715,127.54,127.51,3.9217]
[1725426599152,6.715,127.54,127.51,13.5617]
[1725426599449,3.9207,127.55,127.52,3.9214]
[1725426599846,9.64,127.57,127.52,3.9214]
[1725426600047,0.05895011,127.55,127.52,3.98162417]
[1725426600248,3.97965011,127.55,127.52,3.98162417]
[1725426601048,0.05895011,127.55,127.52,3.98162417]
[1725426601249,0.05895011,127.55,127.52,13.62162417]
[1725426601446,0.05895011,127.55,127.52,3.98162417]
[1725426602147,3.97955011,127.55,127.52,3.98162417]
[1725426602349,13.61955011,127.55,127.52,0.06022417]
[1725426603950,0.05895011,127.55,127.52,3.98152417]
[1725426611654,3.97955011,127.55,127.52,3.98152417]
[1725426612553,3.97955011,127.55,127.52,0.06022417]
[1725426612756,3.921,127.54,127.52,0.06022417]
[1725426613254,0.05895011,127.55,127.52,0.06022417]
[1725426613655,3.97975011,127.55,127.52,0.06022417]
[1725426615259,3.97975011,127.55,127.52,13.62172417]
[1725426617059,0.05895011,127.55,127.52,13.62172417]
[1725426619470,0.05895011,127.55,127.54,13.5609]
[1725426624268,0.05895011,127.55,127.54,3.9209]
[1725426624468,0.05895011,127.55,127.54,13.5609]
[1725426629178,1.3811,127.6,127.57,3.9198]
[1725426629466,3.8435753,127.61,127.58,9.64]
[1725426629667,4.0962,127.64,127.58,13.5596]
[1725426630071,3.919,127.61,127.6,0.05830593]
[1725426641475,3.9761896,127.62,127.6,0.05830593]
[1725426641675,0.0576896,127.62,127.6,0.05830593]
[1725426641982,0.0576896,127.62,127.61,9.64]
[1725426643080,0.0576896,127.62,127.6,0.05830593]
[1725426643280,3.9760896,127.62,127.6,0.05830593]
[1725426645986,3.9187,127.61,127.6,0.05830593]
[1725426668809,3.9762896,127.62,127.6,9.69830593]
[1725426671807,0.0576896,127.62,127.6,13.61730593]
[1725426672009,0.0576896,127.62,127.6,0.05830593]
[1725426672209,0.0576896,127.62,127.61,9.64]
[1725426672407,0.0576896,127.62,127.61,13.5587]
[1725426674413,0.0576896,127.62,127.6,0.05830593]
[1725426675214,3.9187,127.61,127.6,0.05830593]
[1725426683522,3.9762896,127.62,127.6,0.05830593]
[1725426688228,3.9187,127.61,127.6,0.05830593]
[1725426690729,3.9762896,127.62,127.6,0.05830593]
[1725426697233,0.0576896,127.62,127.61,9.64]
[1725426697733,0.0576896,127.62,127.61,13.5587]
[1725426705648,0.0576896,127.62,127.61,17.55691368]
[1725426707738,3.9173,127.66,127.61,13.63821368]
[1725426707938,2.8409,127.67,127.64,9.64]
[1725426708736,3.917,127.67,127.66,9.64]
[1725426709840,0.05826908,127.68,127.66,9.64]
[1725426710041,0.05826908,127.68,127.65,0.05702035]
[1725426710947,3.9171,127.67,127.65,0.05702035]
[1725426716746,0.05826908,127.68,127.65,0.05702035]
[1725426717145,3.9171,127.67,127.65,0.05702035]
[1725426721251,3.9171,127.67,127.65,9.69702035]
[1725426728354,0.05826908,127.68,127.65,0.05702035]
[1725426728559,2.8083,127.66,127.65,0.05702035]
[1725426729357,2.8083,127.66,127.62,3.9183]
[1725426729653,2.8083,127.66,127.62,13.5583]
[1725426730153,3.9175,127.65,127.62,13.5583]
[1725426730357,0.05020979,127.65,127.62,13.60988894]
[1725426730859,0.05020979,127.65,127.62,0.05158894]
[1725426731657,3.918,127.64,127.62,0.05158894]
[1725426735569,3.918,127.64,127.62,9.69158894]
[1725426738370,3.96780979,127.65,127.63,9.64]
[1725426739375,3.96780979,127.65,127.63,13.5581]
[1725426739973,3.96780979,127.65,127.63,9.64]
[1725426740168,3.96780979,127.65,127.62,3.96988894]
[1725426740169,3.9178,127.64,127.62,0.05158894]
[1725426740471,0.05020979,127.65,127.62,0.05158894]
[1725426740975,0.05020979,127.65,127.6,9.64]
[1725426741771,9.64,127.64,127.59,13.5592]
[1725426741971,9.64,127.64,127.6,0.0581018]
[1725426742677,9.64,127.63,127.54,74.78887152]
[1725426742877,9.64,127.6,127.54,74.78887152]
[1725426743079,9.64,127.58,127.48,3.82500869]
[1725426743280,3.9208,127.55,127.51,9.64]
[1725426743577,0.05157165,127.54,127.52,0.05321489]
[1725426744280,0.05157165,127.54,127.52,9.69321489]
[1725426746982,0.05157165,127.54,127.52,0.05321489]
[1725426749284,3.9212,127.53,127.52,0.05321489]
[1725426749676,11.08947165,127.54,127.48,9.64]
[1725426749878,3.9217,127.52,127.48,13.5625]
[1725426750579,3.9217,127.52,127.5,9.64]
[1725426750779,0.0577562,127.51,127.5,9.64]
[1725426756898,0.0577562,127.51,127.49,9.69571473]
[1725426757898,7.854,127.64,127.5,9.64]
[1725426758195,9.64,127.61,127.55,9.64]
[1725426758395,3.9198,127.58,127.55,9.64]
[1725426758597,7.93220308,127.58,127.55,9.64]
[1725426758793,3.9198,127.58,127.55,9.64]
[1725426758990,3.97967572,127.58,127.55,9.6960805]
[1725426759200,3.92,127.57,127.55,9.6960805]
[1725426759999,7.90342858,127.58,127.55,9.6960805]
[1725426762003,0.05987572,127.58,127.55,9.6960805]
[1725426763001,0.05987572,127.58,127.55,13.6163805]
[1725426763504,0.05987572,127.58,127.55,9.6960805]
[1725426763693,0.05987572,127.58,127.56,3.9202]
[1725426770197,0.05987572,127.58,127.55,3.9764805]
[1725426776601,3.97967572,127.58,127.55,3.9764805]
[1725426776803,3.97967572,127.58,127.55,0.0560805]
[1725426777194,3.97967572,127.58,127.55,3.9766805]
[1725426778101,0.05987572,127.58,127.56,9.64]
[1725426779402,0.05987572,127.58,127.57,3.92]
[1725426780611,0.05987572,127.58,127.56,3.9201]
[1725426781108,0.05987572,127.58,127.55,13.6164805]
[1725426781607,0.05987572,127.58,127.55,0.0560805]
[1725426781811,9.64,127.57,127.55,0.0560805]
[1725426782102,3.9207,127.55,127.48,3.91611089]
[1725426782318,3.9207,127.55,127.46,38.56]
[1725426782500,3.9207,127.55,127.5,9.64]
[1725426782703,3.921,127.54,127.5,9.64]
[1725426782999,9.64,127.52,127.51,0.05907007]
[1725426783306,3.9219,127.51,127.46,9.64]
[1725426783800,3.9219,127.51,127.45,69.99142139]
[1725426784011,3.9223,127.5,127.45,79.63142139]
[1725426784305,0.05616328,127.49,127.46,0.06010741]
[1725426784807,0.05616328,127.49,127.46,3.98340741]
[1725426785603,0.05616328,127.49,127.47,3.923]
[1725426785807,0.05616328,127.49,127.47,13.563]
[1725426787105,0.05616328,127.49,127.47,9.64]
[1725426787913,9.64,127.48,127.4,3.9249]
[1725426788207,9.64,127.47,127.4,9.64]
[1725426788406,3.9238,127.45,127.4,13.565]
[1725426788803,3.9238,127.45,127.4,9.64]
[1725426789002,0.05895943,127.44,127.42,9.64]
[1725426789211,0.05084624,127.44,127.43,9.64]
[1725426791711,0.05084624,127.44,127.43,13.5643]
[1725426792406,0.05084624,127.44,127.43,9.64]
[1725426795410,0.05084624,127.44,127.43,13.5643]
[1725426795613,12.397,127.51,127.45,9.64]
[1725426796114,2.757,127.51,127.45,9.64]
[1725426796416,2.757,127.51,127.45,13.5634]
[1725426796417,3.9225,127.49,127.45,13.5634]
[1725426796609,3.9785351,127.49,127.47,0.05058721]
[1725426799517,3.9227,127.48,127.47,0.05058721]
[1725426807425,3.9785351,127.49,127.47,0.05058721]
[1725426809523,3.9785351,127.49,127.47,9.69058721]
[1725426809524,0.0560351,127.49,127.47,9.69058721]
[1725426809923,0.0560351,127.49,127.47,0.05058721]
[1725426813731,0.0560351,127.49,127.47,3.97358721]
[1725426813929,0.0560351,127.49,127.48,9.64]
[1725426814642,0.0560351,127.49,127.48,13.5627]
[1725426816134,0.0560351,127.49,127.48,3.9227]
[1725426836762,0.0560351,127.49,127.47,0.05058721]
[1725426836962,9.6960351,127.49,127.47,0.05058721]
[1725426837565,13.5627,127.48,127.47,0.05058721]
[1725426845475,3.9786351,127.49,127.47,0.05058721]
[1725426851272,0.0560351,127.49,127.47,0.05058721]
[1725426853373,3.9785351,127.49,127.47,0.05058721]
[1725426855084,0.0560351,127.49,127.47,0.05058721]
[1725426855267,3.9227,127.48,127.47,0.05058721]
[1725426857370,3.9786351,127.49,127.47,0.05058721]
[1725426863577,0.0560351,127.49,127.47,0.05058721]
[1725426864680,3.9227,127.48,127.47,0.05058721]
[1725426864878,13.5627,127.48,127.47,0.05058721]
[1725426869287,13.6186351,127.49,127.47,0.05058721]
[1725426872284,3.9227,127.48,127.47,0.05058721]
[1725426873080,13.5627,127.48,127.47,0.05058721]
[1725426875082,3.9234,127.46,127.42,3.9244]
[1725426875284,4.01484863,127.45,127.38,2.8907]
[1725426875488,9.64,127.47,127.38,2.8907]
[1725426875489,9.64,127.46,127.38,6.75525779]
[1725426875680,3.9241,127.44,127.4,3.9249]
[1725426875887,7.84398347,127.44,127.4,3.9249]
[1725426876183,7.84398347,127.44,127.35,0.1154]
[1725426876184,0.05277306,127.43,127.41,0.05970107]
[1725426876389,9.69277306,127.43,127.41,0.05970107]
[1725426877389,3.9246,127.42,127.41,0.05970107]
[1725426877793,0.05277306,127.43,127.41,0.05970107]
[1725426878286,3.97727306,127.43,127.41,0.05970107]
[1725426883100,3.9246,127.42,127.41,0.05970107]
[1725426883895,13.61717306,127.43,127.41,0.05970107]
[1725426885091,0.05277306,127.43,127.41,0.05970107]
[1725426892099,0.05277306,127.43,127.41,9.69970107]
[1725426893102,0.05277306,127.43,127.42,3.9246]
[1725426894902,0.05277306,127.43,127.41,3.98440107]
[1725426896003,0.05277306,127.43,127.42,3.9246]
[1725426902405,48.25277306,127.43,127.19,18.56711552]
[1725426902612,236.2796,127.45,127.29,1.4133]
[1725426902807,9.64,127.37,127.31,3.9277]
[1725426903008,9.64,127.36,127.31,3.9277]
[1725426903212,34.76548184,127.44,127.23,24.98558369]
[1725426903410,2.7845,127.35,127.3,9.64]
[1725426903610,3.93633833,127.34,127.3,9.64]
[1725426903811,3.93633833,127.34,127.28,3.88844909]
[1725426904016,3.93633833,127.34,127.3,9.64]
[1725426904208,0.05477172,127.33,127.31,0.05468883]
[1725426905217,0.05477172,127.33,127.32,9.64]
[1725426907923,1.4348,127.39,127.33,3.9273]
[1725426908124,3.87823538,127.38,127.33,9.64]
[1725426908720,9.64,127.38,127.32,9.64]
[1725426909017,0.05212598,127.36,127.34,0.05108536]
[1725426910123,0.05212598,127.36,127.35,9.64]
[1725426911319,0.05212598,127.36,127.34,9.69108536]
[1725426911519,0.05212598,127.36,127.34,0.05108536]
[1725426913517,0.05212598,127.36,127.34,3.97808536]
[1725426913930,0.05212598,127.36,127.34,0.05108536]
[1725426914123,0.05212598,127.36,127.35,9.64]
[1725426914829,0.05212598,127.36,127.35,13.5667]
[1725426919534,0.05212598,127.36,127.35,3.9267]
[1725426921434,0.05212598,127.36,127.34,9.69108536]
[1725426921828,0.05212598,127.36,127.34,13.61808536]
[1725426922028,0.05212598,127.36,127.34,0.05108536]
[1725426922433,3.9267,127.35,127.34,0.05108536]
[1725426923432,3.9272,127.34,127.3,3.9281]
[1725426923629,9.64,127.33,127.3,3.9281]
[1725426924229,3.9272,127.34,127.3,3.9281]
[1725426924431,0.05023331,127.33,127.31,0.05796386]
[1725426924836,9.69023331,127.33,127.31,0.05796386]
[1725426925436,13.61783331,127.33,127.31,0.05796386]
[1725426926841,3.95138088,127.32,127.31,0.05796386]
[1725426927138,13.5677,127.32,127.31,0.05796386]
[1725426927339,17.40586853,127.32,127.31,0.05796386]
[1725426927639,17.40586853,127.32,127.21,2.9611]
[1725426927640,3.9284,127.3,127.24,3.87980663]
[1725426927941,14.89876853,127.32,127.25,9.64]
[1725426928128,14.89876853,127.32,127.25,13.65611249]
[1725426928527,0.05900779,127.3,127.27,0.05217851]
[1725426932142,3.98730779,127.3,127.27,0.05217851]
[1725426932634,9.64,127.29,127.27,0.05217851]
[1725426933138,13.5687,127.29,127.27,0.05217851]
[1725426933338,9.64,127.29,127.27,0.05217851]
[1725426933539,3.9289,127.28,127.27,0.05217851]
[1725426934747,13.5689,127.28,127.27,0.05217851]
[1725426935151,9.64,127.28,127.16,2.784]
[1725426935447,9.64,127.23,127.16,2.784]